fUSD/lending_fUSD_20260320
["ID","MTS","AMOUNT","RATE_DAILY","PERIOD"]
[408643033,1774036299180,-161.51597875,0.00039726,120]
[408643034,1774036299190,-1999.0,0.00039726,120]
[408643035,1774036299199,-29683.0,0.00039778,120]
[408643036,1774036299209,-2000.0,0.00039834,2]
[408643037,1774036299218,-1634.21,0.00039857,2]
[408643038,1774036299228,-5000.0,0.00039862,30]
[408643039,1774036299237,-155.42931,0.00039888,7]
[408643040,1774036299247,-1398.86387,0.00039888,30]
[408643041,1774036299256,-11171.51907734,0.000399,30]
[408643042,1774036299266,-275.19,0.00039962,7]
[408643043,1774036299275,-30620.57910987,0.0004,2]
[408643044,1774036299285,-4136.32931092,0.0004,2]
[408643045,1774036299294,-10757.93058926,0.0004,2]
[408643046,1774036299304,-163.0,0.0004,8]
[408643047,1774036299313,-150.0,0.0004,10]
[408643048,1774036299322,-150.0,0.0004,10]
[408643049,1774036299332,-150.0,0.0004,15]
[408643050,1774036299341,-150.0,0.0004,5]
[408643051,1774036299351,-150.0,0.0004,5]
[408643052,1774036299361,-169.86503584,0.0004,2]
[408643053,1774036299370,-200.0,0.0004,20]
[408643054,1774036299380,-250.0,0.0004,7]
[408643055,1774036299390,-250.0,0.0004,7]
[408643056,1774036299399,-202.72814632,0.0004,120]
[408643057,1774036299409,-39054.09378274,0.0004,10]
[408643058,1774036299419,-1052.06998786,0.0004,30]
[408643059,1774036299428,-1030.22913591,0.0004,30]
[408643060,1774036299437,-221.91088738,0.0004,120]
[408643061,1774036299447,-15509.66182885,0.0004,2]
[408643062,1774036299456,-1172.0,0.0004,60]
[408643063,1774036299466,-1000.0,0.0004,120]
[408643064,1774036299475,-13585.37,0.0004,30]
[408643065,1774036299484,-393.3362379,0.0004,2]
[408643066,1774036299494,-1571.7332053,0.0004,2]
[408643067,1774036299503,-229.77916149,0.0004,2]
[408643068,1774036299513,-963.30095027,0.0004,2]
[408643069,1774036299526,-316.95820879,0.0004,2]
[408643070,1774036299535,-162.75388802,0.0004,2]
[408643071,1774036299545,-4921.54186224,0.0004,7]
[408643072,1774036299554,-570.1891605,0.0004,6]
[408643073,1774036299565,-679.0,0.0004,30]
[408643074,1774036299575,-430.85202995,0.0004,7]
[408643075,1774036299584,-1000.2382515,0.0004,7]
[408643076,1774036299594,-3000.0,0.0004,7]
[408643077,1774036299740,-493.09459158,0.0004,30]
[408643078,1774036299750,-1000.0,0.0004,30]
[408643079,1774036299760,-1009.0,0.0004,30]
[408643080,1774036299769,-10713.3676451,0.0004,2]
[408643081,1774036299778,-1507.9656839,0.0004,120]
[408643082,1774036299788,-7440.17,0.0004,14]
[408643083,1774036299797,-3372.81039572,0.0004,120]
[408643084,1774036299806,-1500.0,0.0004,60]
[408643085,1774036299815,-774.0,0.0004,120]
[408643086,1774036299824,-1009.0402636,0.0004,2]
[408643087,1774036299833,-814.68995105,0.0004,3]
[408643088,1774036299843,-1048.0,0.0004,30]
[408643089,1774036299852,-5000.0,0.0004,120]
[408643090,1774036299861,-3067.93918853,0.0004,2]
[408643091,1774036299871,-5000.0,0.0004,5]
[408643092,1774036299880,-358.05611478,0.0004,15]
[408643093,1774036299889,-30450.62668531,0.0004,7]
[408643094,1774036299898,-600.0,0.0004,30]
[408643095,1774036299907,-17321.55251595,0.0004,120]
[408643096,1774036299916,-158.95486213,0.0004,120]
[408643097,1774036299926,-300.0,0.0004,10]
[408643098,1774036299935,-150.0,0.0004,120]
[408643099,1774036299944,-243.64,0.0004,120]
[408643100,1774036299955,-20530.30510771,0.0004,60]
[408643101,1774036299964,-5694.93,0.0004,30]
[408643102,1774036299974,-9999.5,0.0004,7]
[408643103,1774036299983,-30274.15059715,0.0004,120]
[408643104,1774036299995,-941.44642253,0.0004,5]
[408643105,1774036300006,-470.28232964,0.0004,120]
[408643106,1774036300015,-7799.22,0.0004,2]
[408643107,1774036300025,-250.07406013,0.0004,12]
[408643108,1774036300035,-5150.29384756,0.0004,8]
[408643109,1774036300046,-5050.76845241,0.0004,6]
[408643110,1774036300056,-5098.16827164,0.0004,7]
[408643111,1774036300067,-282.0,0.0004,120]
[408643112,1774036300076,-2059.15330172,0.0004,30]
[408643113,1774036300085,-500.0,0.0004,120]
[408643114,1774036300095,-152.0,0.0004,120]
[408643115,1774036300104,-5249.15675525,0.0004,120]
[408643116,1774036300113,-637.0,0.0004,120]
[408643117,1774036300123,-164.58198418,0.0004,120]
[408643118,1774036300133,-1264.51810677,0.0004,120]
[408643119,1774036300142,-155.96031118,0.0004,120]
[408643120,1774036300151,-1371.54738053,0.0004,30]
[408643121,1774036300161,-330.87552331,0.0004,30]
[408643122,1774036300170,-5020.0,0.0004,2]
[408643123,1774036300180,-640.0,0.0004,30]
[408643124,1774036300189,-5063.34234512,0.0004,9]
[408643125,1774036300199,-3892214.42899521,0.0004,120]
[408643126,1774036300209,-46291.0,0.0004,50]
[408643127,1774036300218,-215.67282077,0.0004,120]
[408643128,1774036300227,-50226.09976258,0.0004,120]
[408643129,1774036300236,-44197.0191865,0.0004,120]
[408643130,1774036300245,-160.0,0.0004,120]
[408643131,1774036300254,-464.49097038,0.0004,120]
[408643132,1774036300262,-507.0,0.0004,61]
[408643133,1774036300272,-1731.37767368,0.0004,2]
[408643134,1774036300281,-4444.0,0.0004,120]
[408643135,1774036300290,-3666.80584426,0.0004,2]
[408643136,1774036300300,-500000.0,0.0004,30]
[408643137,1774036300310,-300.0,0.0004,120]
[408643138,1774036300319,-22300.0,0.0004,120]
[408643139,1774036300329,-1855.42368674,0.0004,120]
[408643140,1774036300338,-753.2610477,0.0004,120]
[408643141,1774036300347,-25136.24555439,0.0004,120]
[408643142,1774036300357,-24368.99048717,0.0004,2]
[408643143,1774036300366,-25719.28518432,0.0004,3]
[408643144,1774036300376,-10346.33999349,0.0004,5]
[408643145,1774036300386,-34076.27325357,0.0004,120]
[408643146,1774036300395,-9922.21145614,0.0004,120]
[408643147,1774036300404,-979.16666667,0.0004,3]
[408643148,1774036300414,-600.0,0.0004,120]
[408643149,1774036300423,-600.0,0.0004,120]
[408643150,1774036300432,-575.0,0.0004,120]
[408643151,1774036300441,-12500.0,0.0004,120]
[408643152,1774036300451,-1475.62482749,0.0004,14]
[408643153,1774036300460,-12500.0,0.0004,120]
[408643154,1774036300469,-219.07,0.0004,120]
[408643155,1774036300479,-558.27,0.0004,120]
[408643156,1774036300488,-450.0,0.0004,5]
[408643157,1774036300498,-208.85,0.0004,120]
[408643158,1774036300507,-267.2,0.0004,120]
[408643159,1774036300518,-293.08,0.0004,120]
[408643160,1774036300529,-228.72,0.0004,120]
[408643161,1774036300538,-625.92,0.0004,120]
[408643162,1774036300548,-151.25,0.0004,2]
[408643163,1774036300558,-151.25,0.0004,2]
[408643164,1774036300568,-151.25,0.0004,2]
[408643165,1774036300577,-151.25,0.0004,2]
[408643166,1774036300587,-151.25,0.0004,2]
[408643167,1774036300596,-151.25,0.0004,2]
[408643168,1774036300605,-151.25,0.0004,2]
[408643169,1774036300615,-151.25,0.0004,2]
[408643170,1774036300624,-151.25,0.0004,2]
[408643171,1774036300634,-151.25,0.0004,2]
[408643172,1774036300643,-151.25,0.0004,2]
[408643173,1774036300653,-151.25,0.0004,2]
[408643174,1774036300663,-151.25,0.0004,2]
[408643175,1774036300673,-151.25,0.0004,2]
[408643176,1774036300683,-151.25,0.0004,2]
[408643177,1774036300692,-151.25,0.0004,2]
[408643178,1774036300702,-151.25,0.0004,2]
[408643179,1774036300711,-151.25,0.0004,2]
[408643180,1774036300720,-151.25,0.0004,2]
[408643181,1774036300729,-151.25,0.0004,2]
[408643182,1774036300739,-151.25,0.0004,2]
[408643183,1774036300747,-151.25,0.0004,2]
[408643184,1774036300756,-151.25,0.0004,2]
[408643185,1774036300766,-151.25,0.0004,2]
[408643186,1774036300775,-151.25,0.0004,2]
[408643187,1774036300784,-151.25,0.0004,2]
[408643188,1774036300794,-151.25,0.0004,2]
[408643189,1774036300803,-151.25,0.0004,2]
[408643190,1774036300812,-151.25,0.0004,2]
[408643191,1774036300821,-151.25,0.0004,2]
[408643192,1774036300831,-151.25,0.0004,2]
[408643193,1774036300840,-151.25,0.0004,2]
[408643194,1774036300849,-151.25,0.0004,2]
[408643195,1774036300859,-151.25,0.0004,2]
[408643196,1774036300868,-151.25,0.0004,2]
[408643197,1774036300877,-151.25,0.0004,2]
[408643198,1774036300886,-151.25,0.0004,2]
[408643199,1774036300896,-151.25,0.0004,2]
[408643200,1774036300906,-151.25,0.0004,2]
[408643201,1774036300915,-151.25,0.0004,2]
[408643202,1774036300924,-151.25,0.0004,2]
[408643203,1774036300933,-151.25,0.0004,2]
[408643204,1774036300943,-151.25,0.0004,2]
[408643205,1774036300952,-151.25,0.0004,2]
[408643206,1774036300962,-151.25,0.0004,2]
[408643207,1774036300971,-151.25,0.0004,2]
[408643208,1774036300979,-151.25,0.0004,2]
[408643209,1774036300988,-600.0,0.00040077,30]
[408643210,1774036300997,-600.0,0.00040077,30]
[408643211,1774036301007,-550.0,0.00040077,30]
[408643212,1774036301016,-1398.86387,0.00040088,30]
[408643213,1774036301025,-1000.0,0.000401,120]
[408643214,1774036301035,-1000.0,0.00040112,120]
[408643215,1774036301045,-538.55407094,0.00040136,120]
[408643216,1774036301055,-150.0,0.00040165,2]
[408643217,1774036301065,-47277.4297,0.000402,2]
[408643218,1774036301074,-303.62,0.00040217,7]
[408643219,1774036301083,-12500.0,0.0004025,120]
[408643220,1774036301093,-12500.0,0.0004025,120]
[408643221,1774036301102,-25000.0,0.00040258,5]
[408643222,1774036301111,-25000.0,0.00040258,5]
[408643223,1774036301120,-25000.0,0.00040258,5]
[408643224,1774036301129,-25000.0,0.00040258,5]
[408643225,1774036301138,-25000.0,0.00040258,60]
[408643226,1774036301147,-16940.90756372,0.00040258,60]
[408643227,1774036301156,-1398.86387,0.00040288,30]
[408643228,1774036301164,-864.1119403,0.000403,120]
[408643229,1774036301173,-22780.4469638,0.00040372,70]
[408643230,1774036301183,-79651.13115217,0.00040479,2]
[408643231,1774036301192,-1398.86387,0.00040488,30]
[408643232,1774036301201,-185.08351041,0.000405,2]
[408643233,1774036301210,-12499.99,0.000405,120]
[408643234,1774036301219,-500.0,0.00040547,2]
[408643235,1774036301227,-500.0,0.00040547,2]
[408643236,1774036301237,-550.0,0.00040548,5]
[408643237,1774036301245,-10093.0,0.0004058,7]
[408643238,1774036301254,-154.14694108,0.00040612,71]
[408643239,1774036301263,-1398.86387,0.00040688,30]
[408643240,1774036301273,-1634.21,0.00040696,2]
[408643241,1774036301282,-497994.71423915,0.000407,6]
[408643242,1774036301291,-800.0,0.00040701,2]
[408643243,1774036301300,-3671.79511447,0.00040723,2]
[408643244,1774036301309,-5022.0633929,0.000408,60]
[408643245,1774036301319,-1398.86387,0.00040888,30]
[408643246,1774036301329,-1971.47704101,0.000409,2]
[408643247,1774036301339,-713.0,0.000409,120]
[408643248,1774036301348,-216.0,0.0004093,30]
[408643249,1774036301357,-228653.0,0.0004095,60]
[408643250,1774036301367,-150.0,0.00041,10]
[408643251,1774036301376,-57066.12051473,0.00041,5]
[408643252,1774036301385,-500.0,0.00041,45]
[408643253,1774036301394,-500.0,0.00041,45]
[408643254,1774036301404,-500.0,0.00041,45]
[408643255,1774036301413,-500.0,0.00041,45]
[408643256,1774036301422,-500.0,0.00041,45]
[408643257,1774036301431,-500.0,0.00041,45]
[408643258,1774036301441,-500.0,0.00041,45]
[408643259,1774036301450,-500.0,0.00041,45]
[408643260,1774036301459,-930.0,0.00041,30]
[408643261,1774036301468,-500.0,0.00041,45]
[408643262,1774036301477,-500.0,0.00041,45]
[408643263,1774036301487,-1000.0,0.00041,60]
[408643264,1774036301496,-3000.0,0.00041,30]
[408643265,1774036301506,-5550.28251433,0.00041,30]
[408643266,1774036301515,-436.17108747,0.00041,5]
[408643267,1774036301528,-1000.0,0.00041,30]
[408643268,1774036301537,-645.8186184,0.00041,30]
[408643269,1774036301547,-1500.0,0.00041,60]
[408643270,1774036301557,-644.84537949,0.00041,30]
[408643271,1774036301566,-516.87212756,0.00041,30]
[408643272,1774036301574,-300.0,0.00041,10]
[408643273,1774036301583,-500.0,0.00041,45]
[408643274,1774036301592,-500.0,0.00041,45]
[408643275,1774036301612,-500.0,0.00041,45]
[408643276,1774036301623,-500.0,0.00041,45]
[408643277,1774036301633,-500.0,0.00041,45]
[408643278,1774036301643,-500.0,0.00041,45]
[408643279,1774036301653,-500.0,0.00041,45]
[408643280,1774036301663,-500.0,0.00041,45]
[408643281,1774036301673,-500.0,0.00041,45]
[408643282,1774036301683,-500.0,0.00041,45]
[408643283,1774036301693,-762.67,0.00041,120]
[408643284,1774036301702,-202.07311182,0.00041,45]
[408643285,1774036301712,-570.27693223,0.00041,30]
[408643286,1774036301721,-964.95239318,0.00041,120]
[408643287,1774036301731,-2261.39676573,0.00041,120]
[408643288,1774036301740,-200000.0,0.00041,60]
[408643289,1774036301750,-989.35242942,0.00041,2]
[408643290,1774036301759,-160.09557689,0.00041,120]
[408643291,1774036301769,-4444.0,0.00041,120]
[408643292,1774036301779,-1092.3,0.00041041,30]
[408643293,1774036301789,-5000.0,0.00041045,2]
[408643294,1774036301799,-5000.0,0.00041045,2]
[408643295,1774036301808,-2660.0,0.00041045,2]
[408643296,1774036301817,-191.61,0.00041067,7]
[408643297,1774036301827,-2718.1,0.00041068,120]
[408643298,1774036301837,-2658.49705708,0.00041068,120]
[408643299,1774036301846,-797.54911712,0.00041068,120]
[408643300,1774036301855,-341.80676448,0.00041068,120]
[408643301,1774036301865,-1309.5923077,0.00041068,120]
[408643302,1774036301874,-392.8776923,0.00041068,120]
[408643303,1774036301884,-168.37615385,0.00041068,120]
[408643304,1774036301894,-420.0,0.00041068,120]
[408643305,1774036301903,-180.0,0.00041068,120]
[408643306,1774036301914,-800.65874834,0.00041068,120]
[408643307,1774036301924,-343.13946358,0.00041068,120]
[408643308,1774036302110,-431.3076923,0.00041068,120]
[408643309,1774036302120,-184.84615385,0.00041068,120]
[408643310,1774036302129,-236.6144864,0.00041068,120]
[408643311,1774036302139,-1398.86387,0.00041088,30]
[408643312,1774036302148,-181.36198675,0.00041095,30]
[408643313,1774036302158,-500.0,0.00041095,120]
[408643314,1774036302168,-500.0,0.00041095,120]
[408643315,1774036302177,-500.0,0.00041095,120]
[408643316,1774036302187,-614.14582383,0.00041095,120]
[408643317,1774036302197,-150.0,0.00041096,10]
[408643318,1774036302206,-2030.06244701,0.00041096,10]
[408643319,1774036302216,-50000.0,0.00041096,60]
[408643320,1774036302225,-10744.54,0.00041096,60]
[408643321,1774036302235,-50000.0,0.00041096,60]
[408643322,1774036302245,-27030.35,0.00041096,60]
[408643323,1774036302254,-169.941567,0.00041096,120]
[408643324,1774036302264,-253.0,0.00041096,120]
[408643325,1774036302275,-174.0,0.00041096,60]
[408643326,1774036302285,-3065.0,0.00041096,120]
[408643327,1774036302294,-154.58784331,0.00041096,10]
[408643328,1774036302304,-150.0,0.00041096,5]
[408643329,1774036302313,-150.0,0.00041096,7]
[408643330,1774036302323,-150.0,0.00041096,10]
[408643331,1774036302332,-150.0,0.00041096,12]
[408643332,1774036302342,-150.0,0.00041096,15]
[408643333,1774036302352,-150.0,0.00041096,10]
[408643334,1774036302362,-181.36934935,0.00041096,7]
[408643335,1774036302371,-1000.0,0.000411,120]
[408643336,1774036302381,-10000.0,0.000411,120]
[408643337,1774036302391,-1000.0,0.00041115,120]
[408643338,1774036302400,-1000.0,0.000412,120]
[408643339,1774036302411,-10000.0,0.000412,120]
[408643340,1774036302421,-1060.55078528,0.000412,30]
[408643341,1774036302431,-1000.0,0.0004124,120]
[408643342,1774036302441,-41563.62,0.0004127,120]
[408643343,1774036302451,-2896.12,0.0004127,120]
[408643344,1774036302461,-562.23,0.0004127,120]
[408643345,1774036302470,-1398.86387,0.00041288,30]
[408643346,1774036302480,-1000.0,0.000413,120]
[408643347,1774036302490,-10000.0,0.000413,120]
[408643348,1774036302499,-1000.0,0.000413,120]
[408643349,1774036302508,-1000.0,0.000414,120]
[408643350,1774036302519,-1000.0,0.000414,120]
[408643351,1774036302530,-152.0,0.000414,120]
[408643352,1774036302539,-62177.4675,0.000414,2]
[408643353,1774036302548,-2000.0,0.000414,2]
[408643354,1774036302558,-379.42,0.00041434,7]
[408643355,1774036302568,-910.24,0.00041452,120]
[408643356,1774036302577,-1398.86387,0.00041488,30]
[408643357,1774036302587,-500.0,0.000415,45]
[408643358,1774036302596,-500.0,0.000415,45]
[408643359,1774036302606,-500.0,0.000415,45]
[408643360,1774036302615,-500.0,0.000415,45]
[408643361,1774036302625,-500.0,0.000415,45]
[408643362,1774036302635,-500.0,0.000415,45]
[408643363,1774036302644,-500.0,0.000415,45]
[408643364,1774036302654,-500.0,0.000415,45]
[408643365,1774036302663,-500.0,0.000415,45]
[408643366,1774036302673,-500.0,0.000415,45]
[408643367,1774036302683,-1000.0,0.000415,120]
[408643368,1774036302692,-1000.0,0.000415,120]
[408643369,1774036302702,-1004.5,0.000415,10]
[408643370,1774036302712,-1000.0,0.000415,120]
[408643371,1774036302721,-500.0,0.000415,45]
[408643372,1774036302730,-500.0,0.000415,45]
[408643373,1774036302740,-500.0,0.000415,45]
[408643374,1774036302749,-500.0,0.000415,45]
[408643375,1774036302759,-500.0,0.000415,45]
[408643376,1774036302769,-500.0,0.000415,45]
[408643377,1774036302780,-500.0,0.000415,45]
[408643378,1774036302790,-500.0,0.000415,45]
[408643379,1774036302800,-500.0,0.000415,45]
[408643380,1774036302810,-500.0,0.000415,45]
[408643381,1774036302820,-4131.55788671,0.000415,30]
[408643382,1774036302829,-313.59416585,0.00041516,2]
[408643383,1774036302839,-503.0,0.00041519,26]
[408643384,1774036302848,-1634.21,0.00041536,2]
[408643385,1774036302858,-1789.0,0.0004154,30]
[408643386,1774036302868,-1000.0,0.000416,120]
[408643387,1774036302878,-10000.0,0.000416,120]
[408643388,1774036302888,-1000.0,0.000416,120]
[408643389,1774036302898,-250.0,0.00041644,10]
[408643390,1774036302908,-1000.0,0.00041644,10]
[408643391,1774036302917,-720.0,0.00041671,120]
[408643392,1774036302926,-1398.86387,0.00041688,30]
[408643393,1774036302936,-1000.0,0.000417,120]
[408643394,1774036302946,-1000.0,0.000417,120]
[408643395,1774036302956,-11909.0,0.000417,117]
[408643396,1774036302966,-5000.0,0.00041709,2]
[408643397,1774036302976,-3762.0,0.00041709,2]
[408643398,1774036302985,-785.0,0.00041709,2]
[408643399,1774036302995,-600.0,0.0004173,30]
[408643400,1774036303005,-600.0,0.0004173,30]
[408643401,1774036303014,-531.0,0.0004173,30]
[408643402,1774036303024,-278.91,0.00041775,7]
[408643403,1774036303034,-2012.58895573,0.000418,30]
[408643404,1774036303044,-1000.0,0.000418,120]
[408643405,1774036303054,-1000.0,0.000418,120]
[408643406,1774036303063,-350.4303,0.000418,120]
[408643407,1774036303072,-166.17330551,0.000418,120]
[408643408,1774036303082,-386.0056,0.000418,60]
[408643409,1774036303091,-157.861727,0.000418,120]
[408643410,1774036303101,-159.14914422,0.000418,30]
[408643411,1774036303111,-226.0580255,0.000418,30]
[408643412,1774036303120,-177.41672953,0.000418,30]
[408643413,1774036303130,-196.02,0.00041815,120]
[408643414,1774036303139,-486.51,0.00041817,30]
[408643415,1774036303148,-3000.0,0.00041843,2]
[408643416,1774036303158,-1398.86387,0.00041888,30]
[408643417,1774036303167,-1795.97,0.00041895,7]
[408643418,1774036303176,-1000.0,0.000419,120]
[408643419,1774036303186,-96182.00560693,0.000419,14]
[408643420,1774036303195,-10000.0,0.000419,120]
[408643421,1774036303204,-1000.0,0.000419,120]
[408643422,1774036303213,-202.42,0.00041972,2]
[408643423,1774036303223,-50000.0,0.00042,38]
[408643424,1774036303232,-500.0,0.00042,45]
[408643425,1774036303241,-500.0,0.00042,45]
[408643426,1774036303250,-500.0,0.00042,45]
[408643427,1774036303259,-500.0,0.00042,45]
[408643428,1774036303269,-500.0,0.00042,45]
[408643429,1774036303278,-500.0,0.00042,45]
[408643430,1774036303287,-500.0,0.00042,45]
[408643431,1774036303297,-500.0,0.00042,45]
[408643432,1774036303307,-500.0,0.00042,2]
[408643433,1774036303317,-500.0,0.00042,45]
[408643434,1774036303327,-500.0,0.00042,45]
[408643435,1774036303336,-315.69,0.00042,10]
[408643436,1774036303346,-1000.0,0.00042,90]
[408643437,1774036303355,-1000.0,0.00042,30]
[408643438,1774036303365,-152.77679589,0.00042,120]
[408643439,1774036303374,-1510.26568702,0.00042,60]
[408643440,1774036303382,-609.69687754,0.00042,14]
[408643441,1774036303392,-5041.0,0.00042,15]
[408643442,1774036303401,-500.0,0.00042,45]
[408643443,1774036303411,-500.0,0.00042,45]
[408643444,1774036303421,-500.0,0.00042,45]
[408643445,1774036303431,-500.0,0.00042,45]
[408643446,1774036303440,-500.0,0.00042,45]
[408643447,1774036303449,-500.0,0.00042,45]
[408643448,1774036303459,-500.0,0.00042,45]
[408643449,1774036303469,-500.0,0.00042,45]
[408643450,1774036303479,-500.0,0.00042,45]
[408643451,1774036303488,-500.0,0.00042,45]
[408643452,1774036303498,-200.0,0.00042,120]
[408643453,1774036303507,-420.96724962,0.00042,2]
[408643454,1774036303516,-5034.67,0.00042,30]
[408643455,1774036303528,-7185.88,0.00042,5]
[408643456,1774036303537,-2000.0,0.00042,30]
[408643457,1774036303547,-5000.0,0.00042,120]
[408643458,1774036303556,-5000.0,0.00042,120]
[408643459,1774036303565,-50832.49641683,0.00042,6]
[408643460,1774036303575,-933.83997462,0.00042,30]
[408643461,1774036303584,-394.61406446,0.00042,120]
[408643462,1774036303593,-164.95335985,0.00042,120]
[408643463,1774036303603,-212.0,0.00042,120]
[408643464,1774036303612,-2000.0,0.00042,60]
[408643465,1774036303622,-3341.08293018,0.00042,7]
[408643466,1774036303631,-5150.0487703,0.00042,120]
[408643467,1774036303640,-34958.39829254,0.00042,120]
[408643468,1774036303649,-701.72342111,0.00042,120]
[408643469,1774036303658,-310.78772389,0.00042,2]
[408643470,1774036303667,-49842.11382728,0.00042,120]
[408643471,1774036303676,-1375.1956531,0.0004201,2]
[408643472,1774036303685,-394.10735089,0.0004201,30]
[408643473,1774036303695,-391.0,0.00042087,5]
[408643474,1774036303704,-1086.49,0.000421,120]
[408643475,1774036303714,-505.96,0.000421,120]
[408643476,1774036303723,-600.0,0.0004211,30]
[408643477,1774036303732,-600.0,0.0004211,30]
[408643478,1774036303742,-575.0,0.0004211,30]
[408643479,1774036303751,-600.0,0.00042112,30]
[408643480,1774036303760,-600.0,0.00042112,30]
[408643481,1774036303769,-471.0,0.00042112,30]
[408643482,1774036303778,-150.0,0.00042173,120]
[408643483,1774036303786,-350.0,0.00042192,10]
[408643484,1774036303795,-5676.44129276,0.000422,2]
[408643485,1774036303804,-10000.0,0.000422,120]
[408643486,1774036303813,-8987.0,0.000422,120]
[408643487,1774036303823,-5000.0,0.00042218,2]
[408643488,1774036303834,-5000.0,0.00042218,2]
[408643489,1774036303844,-2952.0,0.00042218,2]
[408643490,1774036303854,-228653.0,0.000423,60]
[408643491,1774036303863,-151.5,0.00042316,2]
[408643492,1774036303874,-1634.21,0.00042376,2]
[408643493,1774036303885,-2500.0,0.000424,3]
[408643494,1774036303895,-512.29294274,0.00042438,120]
[408643495,1774036303906,-197.4935404,0.00042438,120]
[408643496,1774036303915,-154.12,0.00042462,30]
[408643497,1774036303924,-1000.0,0.00042465,120]
[408643498,1774036303934,-206.23879812,0.00042465,120]
[408643499,1774036303944,-50000.0,0.00042466,65]
[408643500,1774036303953,-221.191166,0.0004248,120]
[408643501,1774036303963,-500.0,0.000425,45]
[408643502,1774036303973,-500.0,0.000425,45]
[408643503,1774036303982,-500.0,0.000425,45]
[408643504,1774036303993,-500.0,0.000425,45]
[408643505,1774036304002,-500.0,0.000425,45]
[408643506,1774036304011,-500.0,0.000425,45]
[408643507,1774036304021,-500.0,0.000425,45]
[408643508,1774036304030,-500.0,0.000425,45]
[408643509,1774036304040,-500.0,0.000425,45]
[408643510,1774036304050,-500.0,0.000425,45]
[408643511,1774036304059,-1000.0,0.000425,90]
[408643512,1774036304069,-500.0,0.000425,45]
[408643513,1774036304079,-500.0,0.000425,45]
[408643514,1774036304088,-500.0,0.000425,45]
[408643515,1774036304097,-500.0,0.000425,45]
[408643516,1774036304106,-500.0,0.000425,45]
[408643517,1774036304117,-500.0,0.000425,45]
[408643518,1774036304126,-500.0,0.000425,45]
[408643519,1774036304135,-500.0,0.000425,45]
[408643520,1774036304145,-500.0,0.000425,45]
[408643521,1774036304281,-500.0,0.000425,45]
[408643522,1774036304291,-3369.41656077,0.000425,120]
[408643523,1774036304300,-1500.00035262,0.000425,120]
[408643524,1774036304310,-10500.0,0.000426,14]
[408643525,1774036304319,-2500.0,0.0004264,30]
[408643526,1774036304328,-1138.35806335,0.00042647,2]
[408643527,1774036304337,-300.0,0.00042647,2]
[408643528,1774036304347,-300.88341007,0.00042647,2]
[408643529,1774036304357,-765.73376208,0.00042647,2]
[408643530,1774036304366,-300.0,0.00042647,2]
[408643531,1774036304375,-570.73188295,0.00042647,2]
[408643532,1774036304384,-307.22298349,0.00042647,2]